bitfinex/quotes_ETHUSD_20220103
["timestamp","ask_amount","ask_price","bid_price","bid_amount"]
[1641231912338,0.02825687,3765.3,3765.2,23.81201106]
[1641231912539,0.02825687,3765.3,3765.2,25.11201106]
[1641231914445,0.02825687,3765.3,3765.2,25.12307967]
[1641231914644,0.02825687,3765.3,3765.2,25.13414828]
[1641231915104,0.00113685,3765.5,3765.3,8.45]
[1641231915300,0.00113685,3765.5,3765.4,17.59400681]
[1641231915497,0.00113685,3765.5,3765.4,10.44400681]
[1641231915701,0.00113685,3765.5,3765.4,26.01400681]
[1641231917798,3.685e-05,3765.5,3765.4,26.01400681]
[1641231918000,0.0072437,3766.8,3765.5,8.45]
[1641231918200,0.0072437,3766.8,3766.1,0.6636622]
[1641231918400,0.0072437,3766.8,3766.0,1.9909543]
[1641231918401,0.00568423,3766.5,3766.4,23.48363]
[1641231918647,0.00568423,3766.5,3766.4,23.86563]
[1641231918848,0.00568423,3766.5,3766.4,23.22573]
[1641231919048,0.00568423,3766.5,3766.4,24.325781]
[1641231919452,0.00568423,3766.5,3766.4,24.9894045]
[1641231919649,0.00568423,3766.5,3766.4,29.69306755]
[1641231919848,0.00568423,3766.5,3766.4,29.7177521]
[1641231921051,0.00568423,3766.5,3766.4,28.0121768]
[1641231921553,0.00568423,3766.5,3766.4,28.04671921]
[1641231922516,0.0072437,3766.8,3766.6,16.53349]
[1641231922716,0.0072437,3766.8,3766.7,14.1417]
[1641231922921,0.06148991,3766.9,3766.7,15.1417]
[1641231923120,0.06148991,3766.9,3766.8,15.57]
[1641231923317,0.6635,3767.9,3766.8,21.5615]
[1641231923518,0.06148941,3767.2,3767.0,1.32704]
[1641231923723,0.06148941,3767.2,3767.1,20.43588233]
[1641231924023,0.06148941,3767.2,3767.1,20.73588233]
[1641231924224,0.06148941,3767.2,3767.1,19.2425491]
[1641231924422,0.06148941,3767.2,3767.1,24.5516491]
[1641231924822,0.06148941,3767.2,3767.1,11.97718952]
[1641231925225,0.66354,3767.6,3767.1,11.99932674]
[1641231925426,0.66354,3767.6,3767.3,0.66352]
[1641231925624,0.00738951,3767.8,3767.4,8.15820056]
[1641231925825,0.00738951,3767.8,3767.4,5.6907]
[1641231926026,0.00682108,3767.7,3767.5,1.0]
[1641231926269,0.67036108,3767.7,3767.6,5.07244446]
[1641231926464,0.67036108,3767.7,3767.6,1.32244446]
[1641231926465,0.66354,3767.7,3767.6,1.32244446]
[1641231926663,0.66354,3767.7,3767.6,2.32244446]
[1641231926866,6.12,3768.4,3767.6,5.45517328]
[1641231927065,6.12,3768.4,3767.7,16.57]
[1641231927264,6.12,3768.4,3767.9,15.56204207]
[1641231927464,6.12,3768.4,3768.1,15.56204207]
[1641231927663,6.12,3768.4,3768.2,8.17509071]
[1641231927664,0.00227369,3768.3,3768.2,8.17509071]
[1641231927867,0.00227369,3768.3,3768.2,9.17509071]
[1641231928066,0.00227369,3768.3,3768.2,9.47509071]
[1641231928265,0.00227369,3768.3,3768.2,25.03713278]
[1641231930092,0.00227369,3768.3,3768.2,28.0326732]
[1641231930495,0.00227369,3768.3,3768.2,28.059494]
[1641231930892,0.00227369,3768.3,3768.2,28.06183579]
[1641231933400,0.0072437,3768.6,3768.3,8.45]
[1641231933645,0.0072437,3768.6,3768.4,9.6420646]
[1641231933838,0.00113685,3768.5,3768.4,25.24270316]
[1641231934036,0.00113685,3768.5,3768.4,24.54092177]
[1641231934236,0.00113685,3768.5,3768.4,24.57951039]
[1641231934437,0.00113685,3768.5,3768.4,24.54092177]
[1641231934637,0.00113685,3768.5,3768.4,24.63022046]
[1641231934838,0.00113685,3768.5,3768.4,24.59882177]
[1641231935038,0.00113685,3768.5,3768.4,24.63133795]
[1641231935443,0.01155515,3768.5,3768.4,27.62687837]
[1641231935745,0.01155515,3768.5,3768.4,27.61649941]
[1641231938193,0.01155515,3768.5,3768.4,27.65400431]
[1641231938395,0.01155515,3768.5,3768.4,27.61649941]
[1641231938795,0.01155515,3768.5,3768.4,27.91649941]
[1641231939999,0.01155515,3768.5,3768.4,27.95351155]
[1641231940598,0.0072437,3768.6,3768.5,8.45]
[1641231940798,0.0072437,3768.6,3768.5,32.3163651]
[1641231941003,0.0072437,3768.6,3768.5,33.6742651]
[1641231941239,0.0072437,3768.6,3768.5,28.24194274]
[1641231941441,0.0072437,3768.6,3768.5,28.25461335]
[1641231941638,0.0072437,3768.6,3768.5,25.67593549]
[1641231942039,0.0072437,3768.6,3768.5,25.67824207]
[1641231942241,0.0072437,3768.6,3768.5,25.68054865]
[1641231942438,0.0072437,3768.6,3768.5,25.64410348]
[1641231942739,0.0072437,3768.6,3768.5,25.6811406]
[1641231943140,0.0072437,3768.6,3768.5,25.66846999]
[1641231944338,0.06148659,3768.9,3768.5,25.66846999]
[1641231944540,0.06873029,3768.9,3768.8,16.22525207]
[1641231944740,0.06873029,3768.9,3768.8,21.91395207]
[1641231944996,0.06873029,3768.9,3768.8,23.27185207]
[1641231945192,0.0072437,3768.9,3768.8,27.41425076]
[1641231946194,0.0072437,3768.9,3768.8,11.85220869]
[1641231946591,0.0072437,3768.9,3768.8,11.87434591]
[1641231949236,0.0072437,3768.9,3768.8,28.52737598]
[1641231949836,0.0623301,3769.5,3769.1,0.6630877]
[1641231950042,0.0623301,3769.5,3769.3,0.66309]
[1641231950242,0.0623301,3769.5,3769.4,5.6879]
[1641231950440,0.0623301,3769.5,3769.4,5.9879]
[1641231950641,0.06801433,3769.5,3769.4,6.9879]
[1641231950841,1.1522,3770.3,3770.1,0.66538568]
[1641231951243,0.00397897,3770.2,3770.1,0.66538568]
[1641231951642,0.00454739,3770.3,3770.1,1.66538568]
[1641231951843,0.00454739,3770.3,3770.2,0.01106861]
[1641231952042,0.00454739,3770.3,3770.2,0.02213722]
[1641231953506,0.00454739,3770.3,3770.2,0.08185551]
[1641231956145,0.06232733,3771.1,3770.2,0.08185551]
[1641231956338,0.06232733,3771.1,3770.3,1.3262147]
[1641231956339,0.0070335,3770.4,3770.3,1.3262147]
[1641231957141,0.0070335,3770.4,3770.3,1.3841147]
[1641231960103,0.02277137,3771.1,3770.3,1.3841147]
[1641231960503,0.02277137,3771.1,3770.3,1.49288324]
[1641231961203,2.89803409,3771.2,3770.3,1.49288324]
[1641231961602,0.01154892,3771.1,3770.3,1.49288324]
[1641231961805,0.01154892,3771.1,3770.4,0.66313]
[1641231962204,0.01154892,3771.1,3770.8,0.01106861]
[1641231962404,0.01154892,3771.1,3770.8,0.02213722]
[1641231964750,0.01154892,3771.1,3770.8,0.02367145]
[1641231964955,0.01154892,3771.1,3770.8,0.02520568]
[1641231965354,0.01154892,3771.1,3770.9,0.05943423]
[1641231967157,6.06315,3771.0,3770.9,0.05943423]
[1641231967597,0.66315,3771.0,3770.9,0.08157145]
[1641231969907,5.96315,3771.0,3770.9,0.08157145]
[1641231970105,10.46315,3771.0,3770.9,0.08157145]
[1641231970506,9.46315,3771.0,3770.9,0.08157145]
[1641231970905,9.46315,3771.0,3770.9,7.145e-05]
[1641231971163,8.45,3770.9,3770.5,0.00227369]
[1641231971365,0.66333,3770.7,3770.5,0.00227369]
[1641231971560,1.66333,3770.7,3770.5,0.00227369]
[1641231971861,9.79701766,3770.6,3770.5,0.00227369]
[1641231972262,4.84701766,3770.6,3770.5,0.00227369]
[1641231973461,5.84701766,3770.6,3770.5,0.00227369]
[1641231974160,4.84701766,3770.6,3770.5,0.00227369]
[1641231975195,5.84701766,3770.6,3770.5,0.00227369]
[1641231975598,4.84701766,3770.6,3770.5,0.00227369]
[1641231975796,5.84701766,3770.6,3770.5,0.00227369]
[1641231976096,4.84701766,3770.6,3770.5,0.00227369]
[1641231976499,4.84701766,3770.6,3770.5,0.0010755]
[1641231976897,4.84701766,3770.6,3770.5,0.00334919]
[1641231977301,1.34701766,3770.6,3770.5,0.00334919]
[1641231978100,1.64701766,3770.6,3770.5,0.00334919]
[1641231978500,2.64701766,3770.6,3770.5,0.00334919]
[1641231979642,3.64701766,3770.6,3770.5,0.00334919]
[1641231980441,6.14701766,3770.6,3770.5,0.00334919]
[1641231982706,7.14701766,3770.6,3770.5,0.00334919]
[1641231982899,6.84701766,3770.6,3770.5,0.00334919]
[1641231983102,1.0,3770.6,3770.5,0.00334919]
[1641231984402,0.66333,3770.7,3770.5,0.00334919]
[1641231984804,0.66333,3770.7,3770.6,0.00170527]
[1641231985609,1.0,3770.8,3770.6,0.10706327]
[1641231986009,1.0,3770.8,3770.7,0.00113684]
[1641231986647,1.1632,3771.0,3770.7,0.00113684]
[1641231986849,0.01154892,3771.1,3770.7,0.00113684]
[1641231987249,0.66423685,3771.1,3770.8,0.66309]
[1641231987451,0.66423685,3771.1,3770.8,0.66413621]
[1641231990512,0.00113685,3771.1,3770.8,1.32720651]
[1641231990803,0.00113685,3771.1,3770.9,5.9038]
[1641231991203,0.00113685,3771.1,3771.0,9.45]
[1641231991402,0.00113685,3771.1,3771.0,14.7536]
[1641231991604,0.06332493,3771.3,3771.0,6.3036]
[1641231991803,0.06332493,3771.3,3771.1,3.3142993]
[1641231992004,0.06332493,3771.3,3771.2,5.3034]
[1641231992204,0.06332493,3771.3,3771.2,6.3034]
[1641231992402,0.06559863,3771.3,3771.2,7.30303854]
[1641231992605,0.07600931,3771.3,3771.2,7.30303854]
[1641231993006,0.07600931,3771.3,3771.2,10.9484696]
[1641231993205,9.31e-06,3771.3,3771.2,11.342927]
[1641231993503,6.12,3772.1,3771.7,1.9884045]
[1641231993752,0.0072515,3772.2,3771.8,5.96531]
[1641231993948,0.00397896,3772.0,3771.8,6.56531]
[1641231994149,0.00397896,3772.0,3771.8,5.96531]
[1641231994349,0.00341054,3771.9,3771.8,5.96531]
[1641231997154,0.00341054,3771.9,3771.8,6.070669]
[1641231997913,0.00341054,3771.9,3771.8,5.407859]
[1641231998912,0.00341054,3771.9,3771.8,5.40951551]
[1641231999113,0.00341054,3771.9,3771.8,5.41117202]
[1641232000813,0.00341054,3771.9,3771.8,5.51653102]
[1641232001970,2.61700735,3771.9,3771.8,5.51653102]
[1641232002367,3.61700735,3771.9,3771.8,5.51653102]
[1641232002566,6.99900735,3771.9,3771.8,5.51653102]
[1641232003070,8.29900735,3771.9,3771.8,5.51653102]
[1641232004375,8.29900735,3771.9,3771.8,5.51487451]
[1641232004572,8.29900735,3771.9,3770.7,0.00279335]
[1641232004573,1.32647,3771.4,3770.9,0.0143389]
[1641232004773,1.3264,3771.5,3770.9,0.0143389]
[1641232004774,0.86169915,3771.1,3770.9,0.0143389]
[1641232005013,11.98393536,3771.0,3770.9,0.0143389]
[1641232005310,11.98393536,3771.0,3770.9,0.0166126]
[1641232005716,0.0021874,3770.9,3770.7,0.00165651]
[1641232005915,0.382,3770.8,3770.7,5.651e-05]
[1641232006113,3.55636923,3770.8,3770.7,5.651e-05]
[1641232006313,4.85636923,3770.8,3770.7,3.684e-05]
[1641232006512,41.29393757,3770.8,3770.2,0.00010382]
[1641232006813,8.45,3770.2,3768.9,1.69678639]
[1641232007013,3.11139644,3770.1,3768.9,1.69678639]
[1641232007212,1.32682,3769.9,3769.0,0.0096632]
[1641232007413,1.24920423,3769.8,3769.0,0.0096632]
[1641232007918,1.70882,3769.9,3768.9,0.01023163]
[1641232008120,1.70882,3769.9,3769.1,3.65739195]
[1641232008520,0.382,3769.9,3769.2,0.00852636]
[1641232009148,0.382,3769.9,3769.2,3.00253831]
[1641232009551,0.382,3769.9,3769.4,1.3311492]
[1641232009952,0.382,3769.9,3769.5,0.00682109]
[1641232010256,0.382,3769.9,3769.5,3.00083304]
[1641232010453,1.04534,3769.9,3769.5,3.00083304]
[1641232010653,1.04534,3769.9,3769.6,0.00625266]
[1641232011654,1.04534,3769.9,3769.6,3.00026461]
[1641232012055,1.04534,3769.9,3769.7,0.00568424]
[1641232012501,1.04534,3769.9,3769.7,2.99969619]
[1641232012702,0.97902525,3769.9,3769.7,2.99969619]
[1641232012905,0.97902525,3769.9,3769.8,0.00511581]
[1641232014002,0.97902525,3769.9,3769.7,0.00568424]
[1641232016458,3.7611,3770.8,3769.7,0.00568424]
[1641232016658,1.0,3770.6,3770.0,1.32634]
[1641232017057,1.0,3770.5,3770.1,0.00341054]
[1641232018363,1.0,3770.5,3770.1,0.66658054]
[1641232018563,1.24648878,3770.6,3770.1,0.66658054]
[1641232018766,1.24648878,3770.6,3770.2,0.00284212]
[1641232019563,0.66325,3770.5,3770.2,0.00284212]
[1641232019764,0.66325,3770.5,3770.1,0.105359]
[1641232020229,0.66325,3770.5,3770.2,0.00284212]
[1641232020432,0.96325,3770.5,3770.2,0.00284212]
[1641232020630,0.66325,3770.5,3770.2,0.00284212]
[1641232020830,0.6632,3770.7,3770.2,0.00284212]
[1641232021829,0.6632,3770.7,3770.3,0.00126846]
[1641232022231,1.85576675,3770.7,3770.4,0.00170527]
[1641232023030,0.6632,3770.7,3770.4,0.00170527]
[1641232023432,0.00170527,3771.0,3770.4,0.00170527]
[1641232023856,0.86169915,3771.1,3770.4,0.00170527]
[1641232023857,0.00113684,3770.9,3770.4,0.00170527]
[1641232024258,0.00170527,3771.0,3770.4,0.00170527]
[1641232024656,0.00113684,3770.9,3770.4,0.00170527]
[1641232026461,0.66431684,3770.9,3770.4,0.00170527]
[1641232028014,0.66431684,3770.9,3770.1,0.10250869]
[1641232028215,0.00227369,3770.8,3770.1,0.10250869]
[1641232028414,0.00227369,3770.8,3770.2,0.00113685]
[1641232028615,0.00170527,3770.7,3770.2,0.00113685]
[1641232029016,0.00113684,3770.6,3770.2,0.00113685]
[1641232029317,0.00227369,3770.8,3770.2,0.00113685]
[1641232029714,0.00170527,3770.7,3770.2,0.00113685]
[1641232030016,0.00113684,3770.6,3770.2,0.00113685]
[1641232030416,0.00227369,3770.8,3770.2,0.00113685]
[1641232030916,0.00170527,3770.7,3770.2,0.00113685]
[1641232031160,0.00170527,3770.7,3770.3,0.66309]
[1641232031366,0.00113684,3770.6,3770.3,0.66309]
[1641232031767,0.00341054,3771.0,3770.3,0.66309]
[1641232032069,0.00284211,3770.9,3770.3,0.66309]
[1641232032467,0.00227369,3770.8,3770.4,1.989066]
[1641232032667,0.00227369,3770.8,3770.5,0.66305]
[1641232032867,0.00170527,3770.7,3770.5,0.66305]
[1641232033369,0.00113684,3770.6,3770.5,0.66305]
[1641232038756,1.61424684,3771.3,3770.5,0.768409]
[1641232038965,1.91424684,3771.3,3770.5,0.768409]
[1641232039161,0.00341054,3771.2,3770.5,0.768409]
[1641232039561,0.00284212,3771.1,3770.5,0.768409]
[1641232039963,0.0022737,3771.0,3770.5,0.768409]
[1641232040360,2.21424684,3771.3,3770.5,0.768409]
[1641232040361,0.00170527,3770.9,3770.5,0.768409]
[1641232040760,0.00113685,3770.8,3770.5,0.768409]
[1641232044009,0.00113685,3770.8,3770.7,9.8165093]
[1641232044210,0.00113685,3770.8,3770.7,12.79747984]
[1641232044409,0.00113685,3770.8,3770.7,12.7983346]
[1641232044608,0.06076911,3771.8,3770.8,8.45]
[1641232044609,0.01190596,3771.8,3770.8,8.45]
[1641232044809,0.01190596,3771.8,3771.2,0.66284]
[1641232045011,0.00511581,3771.7,3771.3,5.3032]
[1641232045411,0.00454739,3771.6,3771.3,5.3032]
[1641232045811,0.00397896,3771.5,3771.3,5.3032]
[1641232046012,0.9504,3771.4,3771.3,5.3032]
[1641232046258,0.95381054,3771.4,3771.3,5.3032]
[1641232046457,1.25381054,3771.4,3771.3,5.3032]
[1641232047061,0.30341054,3771.4,3771.3,5.3032]
[1641232047459,0.00341054,3771.4,3771.3,5.3032]
[1641232047661,0.95381054,3771.4,3771.3,5.3032]
[1641232047863,0.00341054,3771.4,3771.3,5.3032]
[1641232053211,0.68541054,3771.4,3771.3,5.3032]
[1641232053654,1.68541054,3771.4,3771.3,5.3032]
[1641232053855,0.68541054,3771.4,3771.3,5.3032]
[1641232054055,2.63581054,3771.4,3771.3,5.3032]
[1641232055566,2.63581054,3771.4,3771.3,5.30506177]
[1641232056060,2.63581054,3771.4,3771.3,5.30692354]
[1641232057945,11.08581054,3771.4,3771.3,2.78832354]
[1641232058146,11.08581054,3771.4,3770.5,0.105359]
[1641232058147,8.45,3771.3,3770.5,0.105359]
[1641232058345,2.63581054,3771.4,3770.5,0.105359]
[1641232058346,9.06183045,3770.6,3770.5,0.105359]
[1641232058548,1.01183045,3770.6,3770.5,0.105359]
[1641232058747,1.31183045,3770.6,3770.5,0.105359]
[1641232059546,2.26223045,3770.6,3770.5,0.105359]
[1641232060548,3.26223045,3770.6,3770.5,0.105359]
[1641232061361,4.47109632,3770.6,3770.5,0.105359]
[1641232061757,2.26223045,3770.6,3770.5,0.105359]
[1641232061959,1.31183045,3770.6,3770.5,0.105359]
[1641232062362,1.01183045,3770.6,3770.5,0.105359]
[1641232063866,0.34854045,3770.6,3770.5,0.105359]
[1641232065315,0.34854045,3770.6,3770.5,8.40240975]
[1641232065919,0.29854045,3770.6,3770.5,8.40240975]
[1641232067317,0.29854045,3770.6,3770.5,10.90329773]
[1641232067518,0.29854045,3770.6,3770.5,10.90463267]
[1641232068119,0.29854045,3770.6,3770.5,8.40374469]
[1641232069988,0.2860159,3770.6,3770.5,8.40374469]
[1641232070592,0.2860159,3770.6,3770.5,8.35374469]
[1641232071192,0.2860159,3770.6,3770.5,5.36099394]
[1641232072089,0.2860159,3770.6,3770.5,8.3539641]
[1641232075722,0.2360159,3770.6,3770.5,8.3539641]
[1641232086564,0.1860159,3770.6,3770.5,8.3539641]
[1641232089432,0.1360159,3770.6,3770.5,8.3539641]
[1641232089836,0.001342,3770.9,3770.5,8.3539641]
[1641232090031,0.001342,3770.9,3770.5,9.0170741]
[1641232090231,0.001342,3770.9,3770.6,0.00113685]
[1641232091265,0.001342,3770.9,3770.6,2.99410701]
[1641232094074,0.001342,3770.9,3770.7,1.32617]
[1641232094680,0.001342,3770.9,3770.8,2.99297016]
[1641232098124,0.001342,3770.9,3770.7,1.32617]
[1641232100194,0.001342,3770.9,3770.8,2.99305071]
[1641232100393,0.001342,3770.9,3770.8,2.99477475]
[1641232101394,0.001342,3770.9,3770.8,4.01696743]
[1641232105732,0.001342,3770.9,3770.8,4.12232643]
[1641232106773,0.001342,3770.9,3770.8,4.15109063]
[1641232111632,0.001342,3770.9,3770.8,4.15280293]
[1641232122291,0.001342,3770.9,3770.8,3.13061025]
[1641232122889,0.001342,3770.9,3770.8,0.13755954]
[1641232123089,0.383342,3770.9,3770.8,0.13755954]
[1641232123293,2.260642,3770.9,3770.8,0.13755954]
[1641232123690,3.260642,3770.9,3770.8,0.13755954]
[1641232124190,3.260642,3770.9,3770.8,5.954e-05]
[1641232124191,3.860642,3770.9,3770.8,5.954e-05]
[1641232124389,5.187282,3770.9,3770.8,5.954e-05]
[1641232125339,5.187282,3770.9,3770.8,0.10541854]
[1641232126635,4.887282,3770.9,3770.8,0.10541854]
[1641232126836,3.587282,3770.9,3770.8,0.10541854]
[1641232127036,2.636882,3770.9,3770.8,0.10541854]
[1641232127236,1.709982,3770.9,3770.8,0.10541854]
[1641232128238,1.659982,3770.9,3770.8,0.10541854]
[1641232128440,1.559982,3770.9,3770.8,0.10541854]
[1641232131092,0.233342,3770.9,3770.8,0.10541854]
[1641232132088,1.559722,3770.9,3770.8,0.10541854]
[1641232132923,1.49342483,3770.9,3770.8,0.10541854]
[1641232133122,1.79342483,3770.9,3770.8,0.10541854]
[1641232133522,2.79342483,3770.9,3770.8,0.10541854]
[1641232133725,1.79342483,3770.9,3770.8,0.10541854]
[1641232133923,2.79342483,3770.9,3770.8,0.10541854]
[1641232134322,3.74382483,3770.9,3770.8,0.10541854]
[1641232135328,3.715239,3770.9,3770.8,0.10541854]
[1641232135729,4.53983518,3770.9,3770.8,0.10541854]
[1641232136030,4.44708241,3770.9,3770.8,0.10541854]
[1641232137287,4.74708241,3770.9,3770.8,0.10541854]
[1641232137792,4.74708241,3770.9,3770.8,0.11867814]
[1641232139493,3.74382483,3770.9,3770.8,0.11867814]
[1641232139931,2.79342483,3770.9,3770.8,0.11867814]
[1641232140838,3.74382483,3770.9,3770.8,0.11867814]
[1641232141440,6.50111536,3770.9,3770.8,0.11867814]
[1641232143540,6.42013644,3770.9,3770.8,0.11867814]
[1641232144475,6.42013644,3770.9,3770.7,0.052559]
[1641232144476,8.4632,3770.8,3770.7,0.052559]
[1641232144675,18.78451144,3770.8,3770.7,0.052559]
[1641232144874,8.45,3770.7,3770.5,0.049209]
[1641232145079,5.29630017,3770.6,3770.5,0.049209]
[1641232145278,5.59630017,3770.6,3770.5,0.049209]
[1641232145480,5.58961085,3770.6,3770.5,0.00170527]
[1641232145680,5.58961085,3770.6,3770.4,0.105359]
[1641232145681,0.09833573,3770.5,3770.4,0.105359]
[1641232145881,3.9045327,3770.5,3770.4,0.105359]
[1641232146080,3.9045327,3770.5,3769.7,0.00454739]
[1641232146081,1.3269921,3770.1,3769.7,0.00454739]
[1641232146381,3.21009424,3770.0,3769.7,0.00454739]
[1641232146582,0.332,3769.9,3769.7,0.00454739]
[1641232146781,2.34085399,3769.9,3769.7,0.00454739]
[1641232146980,1.332,3769.9,3769.7,0.00454739]
[1641232147180,2.6589921,3769.9,3769.7,0.00454739]
[1641232147444,1.9955,3769.9,3769.7,0.00454739]
[1641232147636,1.9955,3769.9,3769.2,1.32682]
[1641232147637,0.9955,3769.9,3769.4,0.00625266]
[1641232147836,0.9955,3769.9,3769.3,0.00682108]
[1641232148038,0.9955,3769.9,3769.0,0.07096679]
[1641232148339,0.9955,3769.9,3769.8,2.99406422]
[1641232148739,0.9955,3769.9,3769.8,2.99804318]
[1641232148938,0.9955,3769.9,3769.8,0.00397896]
[1641232149439,0.9955,3769.9,3769.6,0.66843581]
[1641232149640,0.9955,3769.9,3769.8,2.99406422]
[1641232150040,0.9955,3769.9,3769.8,2.99804318]
[1641232150239,0.9955,3769.9,3769.8,0.00397896]
[1641232151040,0.332,3769.9,3769.8,0.00397896]
[1641232151284,0.332,3769.9,3769.8,2.99787908]
[1641232153886,0.332,3769.9,3769.8,3.10323708]
[1641232160988,0.33297748,3769.9,3769.8,3.1165002]
[1641232161193,0.32549219,3769.9,3769.8,3.1165002]
[1641232161389,0.32646967,3769.9,3769.8,3.1165002]
[1641232165149,0.32646967,3769.9,3769.8,0.12260008]
[1641232166191,0.32646967,3769.9,3769.8,3.11602654]
[1641232166797,0.32646967,3769.9,3769.8,0.12260008]
[1641232169205,0.32646967,3769.9,3769.8,3.11610597]
[1641232171642,2.98508834,3769.9,3769.8,3.11610597]
[1641232171841,2.98595722,3769.9,3769.8,3.11610597]
[1641232172040,2.92024699,3769.9,3769.8,3.11610597]
[1641232172241,2.91054626,3769.9,3769.8,3.11610597]
[1641232172442,0.32733855,3769.9,3769.8,3.11610597]
[1641232173440,0.32733855,3769.9,3769.8,0.12260008]
[1641232174499,2.94927382,3769.9,3769.8,0.12260008]
[1641232174797,3.24927382,3769.9,3769.8,0.12260008]
[1641232175000,4.24927382,3769.9,3769.8,0.12260008]
[1641232175599,5.19967382,3769.9,3769.8,0.12260008]
[1641232178754,5.22356726,3769.9,3769.8,0.12260008]
[1641232178955,5.18040111,3769.9,3769.8,0.12260008]
[1641232179354,2.57773855,3769.9,3769.8,0.12260008]
[1641232181205,1.62733855,3769.9,3769.8,0.12260008]
[1641232181399,0.32733855,3769.9,3769.8,0.12260008]
[1641232181599,1.32733855,3769.9,3769.8,0.11862112]
[1641232181799,0.32733855,3769.9,3769.8,0.11862112]
[1641232183003,0.00184636,3769.9,3769.8,0.11862112]
[1641232183802,0.00184636,3769.9,3769.8,3.11198705]
[1641232184203,0.66343384,3770.0,3769.8,9.21198705]
[1641232184402,0.00012384,3770.0,3769.8,3.11198705]
[1641232184602,0.00012384,3770.0,3769.9,0.00341054]
[1641232185442,0.00012384,3770.0,3769.9,2.99677647]
[1641232186442,2.70443884,3770.6,3769.9,2.99677647]
[1641232186642,1.32667,3770.2,3769.9,2.99677647]
[1641232186844,1.32667,3770.2,3770.0,0.00284212]
[1641232187042,1.62667,3770.2,3770.0,0.00284212]
[1641232187243,3.382,3770.1,3770.0,0.00284212]
[1641232187643,4.382,3770.1,3770.0,0.00284212]
[1641232187843,1.382,3770.1,3770.0,0.00284212]
[1641232188046,0.382,3770.1,3770.0,0.00284212]
[1641232188244,1.382,3770.1,3770.0,0.00284212]
[1641232188686,0.382,3770.1,3770.0,0.00284212]
[1641232188884,1.382,3770.1,3770.0,0.00284212]
[1641232189489,2.04533,3770.1,3770.0,0.00284212]
[1641232190089,1.04533,3770.1,3770.0,0.00284212]
[1641232192468,1.34533,3770.1,3770.0,2.9961751]
[1641232193254,1.34533,3770.1,3770.0,0.00284212]
[1641232193857,1.34533,3770.1,3770.0,2.9961751]
[1641232194456,1.34533,3770.1,3770.0,0.00284212]
[1641232194656,2.64533,3770.1,3770.0,0.00284212]
[1641232194856,4.31104264,3770.1,3770.0,0.00284212]
[1641232195058,3.59573,3770.1,3770.0,0.00284212]
[1641232195258,6.2368912,3770.1,3770.0,0.00284212]
[1641232195761,3.59573,3770.1,3770.0,0.00284212]
[1641232197390,4.98700544,3770.1,3770.0,0.00284212]
[1641232198097,3.59573,3770.1,3770.0,0.00284212]
[1641232198498,3.29573,3770.1,3770.0,0.00284212]
[1641232198697,2.34533,3770.1,3770.0,0.00284212]
[1641232198899,3.29573,3770.1,3770.0,0.00284212]
[1641232199099,2.34533,3770.1,3770.0,0.00284212]
[1641232199298,3.29573,3770.1,3770.0,0.00284212]
[1641232201046,2.34533,3770.1,3770.0,0.00284212]
[1641232201247,3.29573,3770.1,3770.0,0.00284212]
[1641232203046,2.34533,3770.1,3770.0,0.00284212]
[1641232203693,3.29573,3770.1,3770.0,0.00284212]
[1641232203896,3.59573,3770.1,3770.0,0.00284212]
[1641232204098,6.22039033,3770.1,3770.0,0.00284212]
[1641232204697,3.59573,3770.1,3770.0,0.00284212]
[1641232205295,3.29573,3770.1,3770.0,0.00284212]
[1641232207442,2.34533,3770.1,3770.0,0.00284212]
[1641232208648,3.29573,3770.1,3770.0,0.00284212]
[1641232209046,2.34533,3770.1,3770.0,0.00284212]
[1641232209246,3.29573,3770.1,3770.0,0.00284212]
[1641232210550,3.59573,3770.1,3770.0,0.00284212]
[1641232213807,3.41703092,3770.1,3770.0,0.00284212]
[1641232214004,3.29573,3770.1,3770.0,0.00284212]
[1641232215256,3.59573,3770.1,3770.0,0.00284212]
[1641232215554,3.81103,3770.1,3770.0,0.00284212]
[1641232216360,3.51103,3770.1,3770.0,0.00284212]
[1641232216655,3.29573,3770.1,3770.0,0.00284212]
[1641232216856,3.95914,3770.1,3769.9,0.01245025]
[1641232217055,1.0,3770.0,3769.9,0.01245025]
[1641232217254,1.382,3770.0,3769.9,0.01245025]
[1641232217457,1.382,3770.0,3769.9,0.01586079]
[1641232217960,1.3324,3770.0,3769.9,0.01586079]
[1641232218158,2.3324,3770.0,3769.9,0.01586079]
[1641232218799,1.3324,3770.0,3769.9,0.01586079]
[1641232219002,1.32674,3770.1,3769.9,0.01586079]
[1641232219003,0.66333,3770.1,3769.9,0.01586079]
[1641232219203,0.22454251,3770.5,3769.9,0.01586079]
[1641232219204,0.66324,3770.3,3769.9,0.01586079]
[1641232219405,0.66324,3770.3,3770.0,0.00284212]
[1641232219603,0.22454251,3770.5,3770.0,0.00284212]
[1641232220007,3.59268014,3771.2,3770.0,2.99609077]
[1641232220204,3.59268014,3771.2,3770.3,1.3263765]
[1641232220406,0.00113685,3770.7,3770.3,1.3263765]
[1641232221207,0.00113685,3770.7,3770.3,2.39042998]
[1641232221408,0.00113685,3770.7,3770.4,0.66319]
[1641232221611,0.66322,3770.5,3770.4,3.65643865]
[1641232221807,0.66322,3770.5,3770.4,2.99324865]
[1641232231253,0.66322,3770.5,3770.4,2.94324865]
[1641232232556,0.66322,3770.5,3770.4,2.95569758]
[1641232237761,0.66322,3770.5,3770.4,0.01244893]
[1641232239564,0.66433685,3770.7,3770.4,0.67564893]
[1641232239967,0.66433685,3770.7,3770.4,0.68624893]
[1641232240168,0.01031253,3770.5,3770.4,0.68624893]
[1641232240368,0.01031253,3770.5,3770.4,0.02304893]
[1641232250821,0.96071253,3770.5,3770.4,0.02304893]
[1641232251622,1.26071253,3770.5,3770.4,0.02304893]
[1641232252020,2.26071253,3770.5,3770.4,0.02304893]
[1641232257109,2.64271253,3770.5,3770.4,0.02304893]
[1641232257813,2.64271253,3770.5,3769.8,0.105358]
[1641232257814,8.45,3770.4,3769.8,0.105358]
[1641232258007,4.774,3770.0,3769.8,0.105358]
[1641232258307,7.65,3769.8,3769.5,0.105359]
[1641232258507,0.682,3769.7,3769.5,0.105359]
[1641232258706,0.682,3769.7,3769.6,0.00511581]
[1641232258906,6.658237,3769.1,3769.0,0.06208023]
[1641232259109,3.603917,3769.1,3769.0,0.06208023]
[1641232259310,3.603917,3769.1,3769.0,0.00341054]
[1641232259506,4.554317,3769.1,3769.0,0.00341054]
[1641232259707,4.554317,3769.1,3769.0,0.105359]
[1641232260150,7.2425577,3769.1,3769.0,0.105359]
[1641232260949,7.4312577,3769.1,3768.9,0.105358]
[1641232261158,3.76984587,3769.0,3768.9,0.105358]